[Event "*** SCC Grand Prix: Titled Tuesday Blitz"]
[Site "Chess.com"]
[Date "2020.06.02"]
[Round "10"]
[White "angryhorse9"]
[Black "allvim"]
[Result "1-0"]
[WhiteElo "2426"]
[BlackElo "2297"]
[TimeControl "180+1"]
[EndTime "11:57:50 PDT"]
[Termination "angryhorse9 won by resignation"]

1. c4 {[%clk 0:03:00.9]} 1... e5 {[%clk 0:02:59.8]} 2. Nf3 {[%clk 0:03:01.2]}
2... Nf6 {[%clk 0:03:00.3]} 3. Nxe5 {[%clk 0:02:59.1]} 3... d6 {[%clk 0:03:00]}
4. Nf3 {[%clk 0:02:58.1]} 4... Be7 {[%clk 0:02:55]} 5. e3 {[%clk 0:02:55.1]}
5... O-O {[%clk 0:02:55.9]} 6. d4 {[%clk 0:02:53.9]} 6... Nc6 {[%clk 0:02:53.9]}
7. Be2 {[%clk 0:02:54.8]} 7... Bg4 {[%clk 0:02:54.2]} 8. O-O {[%clk 0:02:55]}
8... Qd7 {[%clk 0:02:54.8]} 9. Nc3 {[%clk 0:02:53.9]} 9... Rfe8 {[%clk
0:02:55.1]} 10. h3 {[%clk 0:02:52.8]} 10... Bh5 {[%clk 0:02:55.1]} 11. d5 {[%clk
0:02:51.7]} 11... Nb8 {[%clk 0:02:42]} 12. Nd4 {[%clk 0:02:51]} 12... Bxe2
{[%clk 0:02:41.4]} 13. Qxe2 {[%clk 0:02:51.5]} 13... Bf8 {[%clk 0:02:39.9]} 14.
Qc2 {[%clk 0:02:48.8]} 14... Na6 {[%clk 0:02:40.4]} 15. e4 {[%clk 0:02:46.9]}
15... Nc5 {[%clk 0:02:35]} 16. f3 {[%clk 0:02:47.1]} 16... Re5 {[%clk 0:02:24]}
17. b4 {[%clk 0:02:45.1]} 17... Na6 {[%clk 0:02:21.1]} 18. a3 {[%clk 0:02:45.3]}
18... Rh5 {[%clk 0:02:20.4]} 19. g4 {[%clk 0:02:42.6]} 19... Re5 {[%clk
0:01:49.5]} 20. Bf4 {[%clk 0:02:38.2]} 20... Ree8 {[%clk 0:01:49]} 21. Rae1
{[%clk 0:02:37.5]} 21... Rad8 {[%clk 0:01:46]} 22. Bg3 {[%clk 0:02:35.9]} 22...
h6 {[%clk 0:01:40.2]} 23. f4 {[%clk 0:02:35.1]} 23... Nh7 {[%clk 0:01:38.8]} 24.
Nf5 {[%clk 0:02:29.3]} 24... g6 {[%clk 0:01:30.9]} 25. Nd4 {[%clk 0:02:27]}
25... Bg7 {[%clk 0:01:30.6]} 26. e5 {[%clk 0:02:27.3]} 26... h5 {[%clk
0:01:17.9]} 27. Qd1 {[%clk 0:02:21.9]} 27... Re7 {[%clk 0:00:53.8]} 28. e6
{[%clk 0:02:14.2]} 28... fxe6 {[%clk 0:00:50.1]} 29. dxe6 {[%clk 0:02:10.6]}
29... Qe8 {[%clk 0:00:49.6]} 30. f5 {[%clk 0:01:57]} 30... gxf5 {[%clk
0:00:41.1]} 31. gxf5 {[%clk 0:01:54.1]} 31... Bf6 {[%clk 0:00:41.5]} 32. Nd5
{[%clk 0:01:49.1]} 32... Rg7 {[%clk 0:00:39.5]} 33. Kh2 {[%clk 0:01:49.4]} 33...
c6 {[%clk 0:00:30.3]} 34. Nxf6+ {[%clk 0:01:45.6]} 34... Nxf6 {[%clk 0:00:31.2]}
35. Bh4 {[%clk 0:01:42]} 35... Qe7 {[%clk 0:00:23.6]} 36. Rg1 {[%clk 0:01:35.3]}
36... Kh7 {[%clk 0:00:22.6]} 37. Rxg7+ {[%clk 0:01:30.6]} 37... Qxg7 {[%clk
0:00:23.5]} 38. Rg1 {[%clk 0:01:27.7]} 38... Qh6 {[%clk 0:00:19.1]} 39. Rg6
{[%clk 0:01:27]} 39... Qf4+ {[%clk 0:00:18]} 40. Bg3 {[%clk 0:01:27.3]} 40...
Qe4 {[%clk 0:00:10]} 41. Rxf6 {[%clk 0:01:24.3]} 41... Rg8 {[%clk 0:00:10.6]}
42. Qxh5+ {[%clk 0:01:24.4]} 1-0

[Event "*** SCC Grand Prix: Titled Tuesday Blitz"]
[Site "Chess.com"]
[Date "2020.06.02"]
[Round "10"]
[White "konradrutkowski"]
[Black "Oglob71"]
[Result "0-1"]
[WhiteElo "2365"]
[BlackElo "2520"]
[TimeControl "180+1"]
[EndTime "11:57:51 PDT"]
[Termination "Oglob71 won on time"]

1. e4 {[%clk 0:03:00.9]} 1... c5 {[%clk 0:03:00]} 2. Nf3 {[%clk 0:03:00.4]} 2...
d6 {[%clk 0:03:00.3]} 3. d4 {[%clk 0:03:00.2]} 3... cxd4 {[%clk 0:03:00.4]} 4.
Nxd4 {[%clk 0:03:01.1]} 4... Nf6 {[%clk 0:03:00.9]} 5. Nc3 {[%clk 0:03:01.7]}
5... Nc6 {[%clk 0:03:01.6]} 6. Bc4 {[%clk 0:03:00.6]} 6... Bd7 {[%clk
0:03:01.6]} 7. Bb3 {[%clk 0:02:56.3]} 7... Rc8 {[%clk 0:03:01.9]} 8. Be3 {[%clk
0:02:51.2]} 8... a6 {[%clk 0:03:02.1]} 9. Qe2 {[%clk 0:02:47.6]} 9... Na5 {[%clk
0:03:01.8]} 10. O-O-O {[%clk 0:02:37.5]} 10... Nxb3+ {[%clk 0:02:55.1]} 11. axb3
{[%clk 0:02:35.2]} 11... b5 {[%clk 0:02:48.5]} 12. Bg5 {[%clk 0:02:26.3]} 12...
e6 {[%clk 0:02:39.4]} 13. f4 {[%clk 0:02:17.9]} 13... b4 {[%clk 0:02:27.1]} 14.
e5 {[%clk 0:01:54.9]} 14... bxc3 {[%clk 0:02:27]} 15. exf6 {[%clk 0:01:55.4]}
15... gxf6 {[%clk 0:02:24.8]} 16. Bh4 {[%clk 0:01:49.6]} 16... cxb2+ {[%clk
0:02:24]} 17. Kxb2 {[%clk 0:01:47.7]} 17... Be7 {[%clk 0:02:24.4]} 18. Rhe1
{[%clk 0:01:43.5]} 18... Qc7 {[%clk 0:02:19.6]} 19. Nf5 {[%clk 0:01:20.9]} 19...
Bb5 {[%clk 0:02:15.9]} 20. c4 {[%clk 0:01:11.9]} 20... Bc6 {[%clk 0:01:29.2]}
21. Qe3 {[%clk 0:00:38.7]} 21... Rg8 {[%clk 0:01:25.8]} 22. g3 {[%clk
0:00:29.9]} 22... Rg6 {[%clk 0:01:20.1]} 23. Qd4 {[%clk 0:00:26.4]} 23... d5
{[%clk 0:01:12.1]} 24. Nxe7 {[%clk 0:00:25.3]} 24... Qxe7 {[%clk 0:01:11.4]} 25.
f5 {[%clk 0:00:24.7]} 25... Rh6 {[%clk 0:01:10]} 26. fxe6 {[%clk 0:00:24]} 26...
fxe6 {[%clk 0:01:10.4]} 27. Qf4 {[%clk 0:00:10.3]} 27... Rg6 {[%clk 0:01:07.8]}
28. cxd5 {[%clk 0:00:09.8]} 28... Bd7 {[%clk 0:00:48.6]} 29. dxe6 {[%clk
0:00:08.3]} 29... Bb5 {[%clk 0:00:45.2]} 30. Rd6 {[%clk 0:00:04.5]} 30... Kf8
{[%clk 0:00:40.8]} 31. Rf1 {[%clk 0:00:01.8]} 31... Kg7 {[%clk 0:00:39.5]} 0-1

[Event "*** SCC Grand Prix: Titled Tuesday Blitz"]
[Site "Chess.com"]
[Date "2020.06.02"]
[Round "10"]
[White "Jenia84"]
[Black "LuckSlayeer"]
[Result "1-0"]
[WhiteElo "2265"]
[BlackElo "2448"]
[TimeControl "180+1"]
[EndTime "11:57:51 PDT"]
[Termination "Jenia84 won by resignation"]

1. Nf3 {[%clk 0:03:00.9]} 1... d5 {[%clk 0:02:59]} 2. b3 {[%clk 0:02:57.9]} 2...
Nf6 {[%clk 0:02:58.1]} 3. Bb2 {[%clk 0:02:58]} 3... g6 {[%clk 0:02:58.1]} 4. e3
{[%clk 0:02:57.6]} 4... Bg7 {[%clk 0:02:58.4]} 5. c4 {[%clk 0:02:57.7]} 5... O-O
{[%clk 0:02:57.9]} 6. cxd5 {[%clk 0:02:55.9]} 6... Nxd5 {[%clk 0:02:58.2]} 7.
Bxg7 {[%clk 0:02:55.4]} 7... Kxg7 {[%clk 0:02:59.1]} 8. Nc3 {[%clk 0:02:55.1]}
8... c5 {[%clk 0:02:57]} 9. Nxd5 {[%clk 0:02:51.5]} 9... Qxd5 {[%clk 0:02:56.8]}
10. Bc4 {[%clk 0:02:51.4]} 10... Qd6 {[%clk 0:02:55]} 11. d4 {[%clk 0:02:51.1]}
11... Bg4 {[%clk 0:02:37.3]} 12. dxc5 {[%clk 0:02:45.9]} 12... Qxc5 {[%clk
0:02:23.9]} 13. Qd4+ {[%clk 0:02:43.6]} 13... Qxd4 {[%clk 0:02:23.5]} 14. Nxd4
{[%clk 0:02:43.2]} 14... e5 {[%clk 0:02:08.4]} 15. Nb5 {[%clk 0:02:29.1]} 15...
Nc6 {[%clk 0:02:08.3]} 16. f3 {[%clk 0:02:27.7]} 16... Bd7 {[%clk 0:01:59.9]}
17. Rd1 {[%clk 0:02:20.6]} 17... Rfd8 {[%clk 0:01:56.6]} 18. Nd6 {[%clk
0:02:18.6]} 18... Be6 {[%clk 0:01:00.4]} 19. Bxe6 {[%clk 0:02:09.5]} 19... fxe6
{[%clk 0:01:01.3]} 20. Nxb7 {[%clk 0:02:08.9]} 20... Rxd1+ {[%clk 0:00:59.8]}
21. Kxd1 {[%clk 0:02:07.7]} 21... Nb4 {[%clk 0:00:35.5]} 22. a3 {[%clk
0:01:52.6]} 22... Nd5 {[%clk 0:00:35.3]} 23. Kd2 {[%clk 0:01:33]} 23... Rb8
{[%clk 0:00:21.7]} 24. Nc5 {[%clk 0:01:27.6]} 24... Kf7 {[%clk 0:00:21.4]} 25.
Rc1 {[%clk 0:01:17.7]} 25... a5 {[%clk 0:00:19.9]} 26. g3 {[%clk 0:01:12]} 26...
Rd8 {[%clk 0:00:15.5]} 27. Ke2 {[%clk 0:01:10.8]} 27... Rc8 {[%clk 0:00:14.9]}
28. e4 {[%clk 0:01:06.9]} 28... Nb6 {[%clk 0:00:15]} 29. Nd3 {[%clk 0:00:58.4]}
29... Rd8 {[%clk 0:00:06.1]} 30. Nxe5+ {[%clk 0:00:51.5]} 30... Kf6 {[%clk
0:00:05.2]} 31. f4 {[%clk 0:00:44.9]} 31... Rb8 {[%clk 0:00:03.7]} 32. Rc6
{[%clk 0:00:36.2]} 32... Rb7 {[%clk 0:00:01.6]} 33. Rxb6 {[%clk 0:00:34.9]} 1-0

[Event "*** SCC Grand Prix: Titled Tuesday Blitz"]
[Site "Chess.com"]
[Date "2020.06.02"]
[Round "10"]
[White "dosto07"]
[Black "mikerahal"]
[Result "1/2-1/2"]
[WhiteElo "2095"]
[BlackElo "2238"]
[TimeControl "180+1"]
[EndTime "11:57:52 PDT"]
[Termination "Game drawn by repetition"]

1. e4 {[%clk 0:03:00.9]} 1... e6 {[%clk 0:02:56.7]} 2. d4 {[%clk 0:02:59.8]}
2... d5 {[%clk 0:02:56.8]} 3. Nd2 {[%clk 0:02:59.9]} 3... c5 {[%clk 0:02:56.2]}
4. exd5 {[%clk 0:02:57.9]} 4... Qxd5 {[%clk 0:02:56.6]} 5. Ngf3 {[%clk
0:02:57.6]} 5... cxd4 {[%clk 0:02:56]} 6. Bc4 {[%clk 0:02:57]} 6... Qd7 {[%clk
0:02:55.9]} 7. O-O {[%clk 0:02:51.6]} 7... Nc6 {[%clk 0:02:55.3]} 8. Nb3 {[%clk
0:02:43.9]} 8... Nf6 {[%clk 0:02:55.3]} 9. Nbxd4 {[%clk 0:02:40.8]} 9... Nxd4
{[%clk 0:02:55.4]} 10. Nxd4 {[%clk 0:02:39.3]} 10... a6 {[%clk 0:02:55.2]} 11.
Bg5 {[%clk 0:02:32.6]} 11... Bc5 {[%clk 0:02:52.9]} 12. Nb3 {[%clk 0:02:25.4]}
12... Bd6 {[%clk 0:02:47.6]} 13. Qf3 {[%clk 0:02:18.5]} 13... Qe7 {[%clk
0:02:29.1]} 14. Rad1 {[%clk 0:02:11.8]} 14... O-O {[%clk 0:02:19.1]} 15. Rfe1
{[%clk 0:02:03]} 15... h6 {[%clk 0:02:08.6]} 16. Bxf6 {[%clk 0:01:58.9]} 16...
gxf6 {[%clk 0:02:09.5]} 17. Qh5 {[%clk 0:01:35.3]} 17... Kh7 {[%clk 0:02:07]}
18. Bd3+ {[%clk 0:01:31.3]} 18... f5 {[%clk 0:02:06.6]} 19. Bxf5+ {[%clk
0:01:27.9]} 19... Kg7 {[%clk 0:02:03.4]} 20. Qg4+ {[%clk 0:01:11.3]} 20... Kh8
{[%clk 0:02:01.8]} 21. Qd4+ {[%clk 0:01:08.5]} 21... Kg8 {[%clk 0:01:56.8]} 22.
Qxd6 {[%clk 0:00:59.6]} 22... Qxd6 {[%clk 0:01:57.7]} 23. Rxd6 {[%clk
0:00:58.9]} 23... exf5 {[%clk 0:01:58.6]} 24. Rxh6 {[%clk 0:00:58.5]} 24... Kg7
{[%clk 0:01:59.1]} 25. Rd6 {[%clk 0:00:57.4]} 25... Be6 {[%clk 0:01:58.2]} 26.
Nc5 {[%clk 0:00:55.5]} 26... Rac8 {[%clk 0:01:51.1]} 27. Nxe6+ {[%clk
0:00:33.1]} 27... fxe6 {[%clk 0:01:52]} 28. c3 {[%clk 0:00:30.1]} 28... Rcd8
{[%clk 0:01:28.2]} 29. Rdxe6 {[%clk 0:00:28.1]} 29... Rd2 {[%clk 0:01:27.6]} 30.
R6e2 {[%clk 0:00:27.6]} 30... Rd5 {[%clk 0:01:21]} 31. g3 {[%clk 0:00:24.2]}
31... Rfd8 {[%clk 0:01:19.7]} 32. Re7+ {[%clk 0:00:23.6]} 32... Kf6 {[%clk
0:01:20.3]} 33. Rxb7 {[%clk 0:00:17.9]} 33... Rd2 {[%clk 0:01:14]} 34. Rb6+
{[%clk 0:00:13.3]} 34... Kf7 {[%clk 0:01:14]} 35. Kg2 {[%clk 0:00:10.9]} 35...
Rc2 {[%clk 0:01:12.3]} 36. h4 {[%clk 0:00:09.6]} 36... Rdd2 {[%clk 0:01:12.6]}
37. Rf1 {[%clk 0:00:09.2]} 37... a5 {[%clk 0:01:08.2]} 38. a4 {[%clk 0:00:09.2]}
38... Re2 {[%clk 0:01:04]} 39. Rb5 {[%clk 0:00:07.8]} 39... Kg6 {[%clk
0:01:03.5]} 40. Rxa5 {[%clk 0:00:07]} 40... Rxb2 {[%clk 0:01:03]} 41. Ra6+
{[%clk 0:00:05.6]} 41... Kg7 {[%clk 0:01:01.7]} 42. Ra5 {[%clk 0:00:05.4]} 42...
Kg6 {[%clk 0:01:01.3]} 43. Ra6+ {[%clk 0:00:05.6]} 43... Kg7 {[%clk 0:01:01.7]}
44. Ra5 {[%clk 0:00:04.7]} 44... Kg6 {[%clk 0:00:55.8]} 1/2-1/2

[Event "*** SCC Grand Prix: Titled Tuesday Blitz"]
[Site "Chess.com"]
[Date "2020.06.02"]
[Round "10"]
[White "Semetey"]
[Black "Gerodot71"]
[Result "0-1"]
[WhiteElo "2529"]
[BlackElo "2407"]
[TimeControl "180+1"]
[EndTime "11:57:53 PDT"]
[Termination "Gerodot71 won by resignation"]

1. d4 {[%clk 0:03:00.9]} 1... Nf6 {[%clk 0:02:59.4]} 2. Nf3 {[%clk 0:03:00]}
2... d5 {[%clk 0:02:58.9]} 3. Bf4 {[%clk 0:02:59.8]} 3... c5 {[%clk 0:02:58.9]}
4. e3 {[%clk 0:02:58.2]} 4... Nc6 {[%clk 0:02:58.8]} 5. c3 {[%clk 0:02:57.6]}
5... Qb6 {[%clk 0:02:58.6]} 6. Qc2 {[%clk 0:02:51.1]} 6... g6 {[%clk 0:02:57.8]}
7. Bd3 {[%clk 0:02:48.4]} 7... c4 {[%clk 0:02:57.3]} 8. Be2 {[%clk 0:02:48.1]}
8... Bf5 {[%clk 0:02:57.7]} 9. Qc1 {[%clk 0:02:48.4]} 9... Bg7 {[%clk
0:02:54.7]} 10. Nbd2 {[%clk 0:02:45.4]} 10... O-O {[%clk 0:02:52.5]} 11. h3
{[%clk 0:02:39.4]} 11... Rfc8 {[%clk 0:02:51.8]} 12. O-O {[%clk 0:02:39]} 12...
Qd8 {[%clk 0:02:51.1]} 13. Rd1 {[%clk 0:02:24.3]} 13... b5 {[%clk 0:02:50.6]}
14. a3 {[%clk 0:02:23.2]} 14... a5 {[%clk 0:02:48.7]} 15. Ne5 {[%clk 0:02:18.7]}
15... Qb6 {[%clk 0:02:38.9]} 16. Bf3 {[%clk 0:02:09.4]} 16... Nxe5 {[%clk
0:02:27.9]} 17. Bxe5 {[%clk 0:02:09.2]} 17... Qe6 {[%clk 0:02:22.3]} 18. Re1
{[%clk 0:02:07.4]} 18... Be4 {[%clk 0:02:18.1]} 19. Bxf6 {[%clk 0:02:04.8]}
19... exf6 {[%clk 0:02:05.9]} 20. Bxe4 {[%clk 0:00:47.2]} 20... dxe4 {[%clk
0:02:06.8]} 21. Qc2 {[%clk 0:00:47.2]} 21... f5 {[%clk 0:02:06.7]} 22. b3 {[%clk
0:00:32]} 22... cxb3 {[%clk 0:02:03.4]} 23. Nxb3 {[%clk 0:00:32]} 23... Qc4
{[%clk 0:01:55.7]} 24. Rec1 {[%clk 0:00:25.7]} 24... Bf8 {[%clk 0:01:54.3]} 25.
a4 {[%clk 0:00:24]} 25... b4 {[%clk 0:01:50.6]} 26. Nd2 {[%clk 0:00:19.8]} 26...
Qxc3 {[%clk 0:01:49.8]} 27. Qxc3 {[%clk 0:00:19.9]} 27... bxc3 {[%clk
0:01:48.3]} 28. Nb3 {[%clk 0:00:19.3]} 28... Bb4 {[%clk 0:01:48.8]} 29. Rc2
{[%clk 0:00:19]} 29... Kf8 {[%clk 0:01:48.7]} 30. Rac1 {[%clk 0:00:19.2]} 30...
Ke7 {[%clk 0:01:49.3]} 31. Kf1 {[%clk 0:00:19.5]} 31... Kd6 {[%clk 0:01:49.5]}
32. Ke2 {[%clk 0:00:19.8]} 32... Kd5 {[%clk 0:01:49.9]} 33. Nc5 {[%clk
0:00:18.7]} 33... Bxc5 {[%clk 0:01:48.7]} 34. Rxc3 {[%clk 0:00:17.8]} 34... Kd6
{[%clk 0:01:44.9]} 35. Rxc5 {[%clk 0:00:17.2]} 35... Rxc5 {[%clk 0:01:45]} 36.
Rxc5 {[%clk 0:00:18.1]} 36... Ra7 {[%clk 0:01:43.6]} 37. Kd2 {[%clk 0:00:17.7]}
37... Ke6 {[%clk 0:01:38.4]} 38. Kc3 {[%clk 0:00:16.9]} 38... Kd6 {[%clk
0:01:38.6]} 39. Kc4 {[%clk 0:00:17.1]} 39... Ra8 {[%clk 0:01:35.6]} 40. d5
{[%clk 0:00:15.5]} 40... Ke5 {[%clk 0:01:25.5]} 41. f4+ {[%clk 0:00:13.8]} 41...
exf3 {[%clk 0:01:25.1]} 42. gxf3 {[%clk 0:00:14.7]} 42... f4 {[%clk 0:01:22.7]}
43. e4 {[%clk 0:00:14.1]} 43... f5 {[%clk 0:01:19.9]} 44. Rc7 {[%clk 0:00:12.5]}
44... fxe4 {[%clk 0:01:19.2]} 45. Re7+ {[%clk 0:00:12.6]} 45... Kd6 {[%clk
0:01:18.6]} 46. Re6+ {[%clk 0:00:12.7]} 46... Kd7 {[%clk 0:01:18.8]} 47. Rxe4
{[%clk 0:00:09.1]} 47... Rb8 {[%clk 0:01:18.8]} 48. Rxf4 {[%clk 0:00:08.4]}
48... Rb4+ {[%clk 0:01:18.7]} 49. Kc5 {[%clk 0:00:08.8]} 49... Rxf4 {[%clk
0:01:19.6]} 0-1

[Event "*** SCC Grand Prix: Titled Tuesday Blitz"]
[Site "Chess.com"]
[Date "2020.06.02"]
[Round "10"]
[White "H16"]
[Black "mattcolins2025"]
[Result "0-1"]
[WhiteElo "2507"]
[BlackElo "2389"]
[TimeControl "180+1"]
[EndTime "11:57:53 PDT"]
[Termination "mattcolins2025 won by resignation"]

1. d4 {[%clk 0:03:00.9]} 1... Nf6 {[%clk 0:03:00.1]} 2. c4 {[%clk 0:03:01.1]}
2... g6 {[%clk 0:03:00.5]} 3. f3 {[%clk 0:03:01.4]} 3... Bg7 {[%clk 0:03:00.6]}
4. e4 {[%clk 0:03:02]} 4... d6 {[%clk 0:03:01.2]} 5. Nc3 {[%clk 0:03:02.6]} 5...
O-O {[%clk 0:03:01.2]} 6. Nge2 {[%clk 0:03:03.5]} 6... c5 {[%clk 0:03:00.3]} 7.
d5 {[%clk 0:03:03.9]} 7... e6 {[%clk 0:03:00.5]} 8. Ng3 {[%clk 0:03:04.8]} 8...
exd5 {[%clk 0:03:00.9]} 9. cxd5 {[%clk 0:03:05.7]} 9... a6 {[%clk 0:03:01.5]}
10. a4 {[%clk 0:03:06.1]} 10... Nbd7 {[%clk 0:02:54.6]} 11. Be2 {[%clk
0:03:05.3]} 11... h5 {[%clk 0:02:50]} 12. Bg5 {[%clk 0:03:04.8]} 12... Qc7
{[%clk 0:02:44.7]} 13. Qd2 {[%clk 0:03:04.3]} 13... Rb8 {[%clk 0:02:43.4]} 14.
O-O {[%clk 0:03:03.6]} 14... Ne5 {[%clk 0:02:35.8]} 15. f4 {[%clk 0:03:00.2]}
15... Ned7 {[%clk 0:02:30.5]} 16. e5 {[%clk 0:03:00.3]} 16... dxe5 {[%clk
0:02:29.9]} 17. f5 {[%clk 0:03:00]} 17... c4 {[%clk 0:02:27.7]} 18. Kh1 {[%clk
0:02:54.6]} 18... b5 {[%clk 0:02:17.6]} 19. axb5 {[%clk 0:02:52.7]} 19... axb5
{[%clk 0:02:17.3]} 20. Nce4 {[%clk 0:02:51.3]} 20... Nxe4 {[%clk 0:02:16.3]} 21.
Nxe4 {[%clk 0:02:50]} 21... Nc5 {[%clk 0:02:03]} 22. Nf6+ {[%clk 0:02:46.5]}
22... Bxf6 {[%clk 0:02:02.3]} 23. Bxf6 {[%clk 0:02:46.1]} 23... Ne4 {[%clk
0:02:02.2]} 24. Qh6 {[%clk 0:02:12.7]} 24... Nxf6 {[%clk 0:02:01.3]} 25. d6
{[%clk 0:02:12.8]} 25... Qb7 {[%clk 0:01:53.8]} 26. Bxh5 {[%clk 0:02:00.2]}
26... Nxh5 {[%clk 0:01:17.5]} 27. fxg6 {[%clk 0:01:59.1]} 27... f5 {[%clk
0:01:15.3]} 28. Qxh5 {[%clk 0:01:54.1]} 28... Qg7 {[%clk 0:01:14.8]} 29. Ra3
{[%clk 0:01:48.3]} 29... Rf6 {[%clk 0:01:12.5]} 30. g4 {[%clk 0:01:17]} 30...
Rxg6 {[%clk 0:00:57.3]} 31. h3 {[%clk 0:01:10.8]} 31... fxg4 {[%clk 0:00:52.7]}
32. Ra7 {[%clk 0:01:01.4]} 32... Bb7+ {[%clk 0:00:51.3]} 33. Kh2 {[%clk
0:00:58.5]} 33... gxh3 {[%clk 0:00:42.5]} 34. Rxb7 {[%clk 0:00:36.8]} 34... Rg2+
{[%clk 0:00:31]} 35. Kh1 {[%clk 0:00:36.7]} 35... Qxb7 {[%clk 0:00:26.7]} 36.
Rf3 {[%clk 0:00:32.6]} 36... Rg3 {[%clk 0:00:22.7]} 37. Kh2 {[%clk 0:00:25.8]}
37... Qxf3 {[%clk 0:00:21.8]} 38. Qxf3 {[%clk 0:00:24.5]} 38... Rxf3 {[%clk
0:00:22.2]} 39. d7 {[%clk 0:00:25.4]} 39... Rd8 {[%clk 0:00:22.5]} 40. b3 {[%clk
0:00:25.5]} 40... Rxd7 {[%clk 0:00:22.8]} 41. bxc4 {[%clk 0:00:26.2]} 41... Rd2+
{[%clk 0:00:23.3]} 0-1

[Event "*** SCC Grand Prix: Titled Tuesday Blitz"]
[Site "Chess.com"]
[Date "2020.06.02"]
[Round "10"]
[White "HElissalt"]
[Black "Vitor-Moraes"]
[Result "1-0"]
[WhiteElo "2220"]
[BlackElo "2032"]
[TimeControl "180+1"]
[EndTime "11:57:53 PDT"]
[Termination "HElissalt won by resignation"]

1. d4 {[%clk 0:01:22]} 1... Nf6 {[%clk 0:02:58.6]} 2. c4 {[%clk 0:01:19.9]} 2...
e6 {[%clk 0:02:59]} 3. Nc3 {[%clk 0:01:20]} 3... d5 {[%clk 0:02:59.4]} 4. cxd5
{[%clk 0:01:19.3]} 4... exd5 {[%clk 0:02:58.1]} 5. Bg5 {[%clk 0:01:19.8]} 5...
Be7 {[%clk 0:02:58.3]} 6. e3 {[%clk 0:01:20.4]} 6... O-O {[%clk 0:02:58.6]} 7.
Bd3 {[%clk 0:01:21]} 7... b6 {[%clk 0:02:54.8]} 8. Qc2 {[%clk 0:01:20.9]} 8...
h6 {[%clk 0:02:53.3]} 9. h4 {[%clk 0:01:20.1]} 9... Ba6 {[%clk 0:02:50.9]} 10.
Bxf6 {[%clk 0:01:15.3]} 10... Bxf6 {[%clk 0:02:47.8]} 11. Nf3 {[%clk 0:01:13.7]}
11... Bxd3 {[%clk 0:02:46.3]} 12. Qxd3 {[%clk 0:01:13.9]} 12... Nd7 {[%clk
0:02:44.8]} 13. g4 {[%clk 0:01:13.1]} 13... Be7 {[%clk 0:02:15.5]} 14. g5 {[%clk
0:01:11.5]} 14... h5 {[%clk 0:02:12.6]} 15. Nxd5 {[%clk 0:01:11.1]} 15... Bd6
{[%clk 0:02:09.9]} 16. O-O-O {[%clk 0:01:08.2]} 16... c5 {[%clk 0:02:08.6]} 17.
Rdg1 {[%clk 0:01:05.3]} 17... cxd4 {[%clk 0:02:07.7]} 18. exd4 {[%clk
0:00:35.4]} 18... Rc8+ {[%clk 0:01:47.1]} 19. Kb1 {[%clk 0:00:34.9]} 19... g6
{[%clk 0:01:37.3]} 20. Nd2 {[%clk 0:00:34.1]} 20... b5 {[%clk 0:01:21.8]} 21.
Ne4 {[%clk 0:00:33.6]} 21... Be7 {[%clk 0:01:08.3]} 22. Qxb5 {[%clk 0:00:33.6]}
22... Rb8 {[%clk 0:01:04.1]} 23. Qxd7 {[%clk 0:00:33.2]} 23... Qxd7 {[%clk
0:00:52.5]} 24. Ndf6+ {[%clk 0:00:32.9]} 24... Kg7 {[%clk 0:00:34]} 25. Nxd7
{[%clk 0:00:32.9]} 25... Rfd8 {[%clk 0:00:33.9]} 26. Nxb8 {[%clk 0:00:33]} 26...
Rxb8 {[%clk 0:00:34]} 27. Rd1 {[%clk 0:00:30.9]} 27... Ba3 {[%clk 0:00:33.5]}
28. Rd2 {[%clk 0:00:29.7]} 28... Bb4 {[%clk 0:00:32.1]} 29. Rd3 {[%clk
0:00:29.5]} 29... Be7 {[%clk 0:00:31]} 30. d5 {[%clk 0:00:29.1]} 30... Rb6
{[%clk 0:00:28.6]} 31. f3 {[%clk 0:00:28.9]} 31... Bf8 {[%clk 0:00:23.7]} 32.
Rc1 {[%clk 0:00:28.8]} 32... Kg8 {[%clk 0:00:23.4]} 33. Rc6 {[%clk 0:00:28.8]}
33... Rb5 {[%clk 0:00:22.1]} 34. d6 {[%clk 0:00:28.2]} 34... Bg7 {[%clk
0:00:22.3]} 35. d7 {[%clk 0:00:27.7]} 35... Rb4 {[%clk 0:00:21.4]} 36. d8=Q+
{[%clk 0:00:26.1]} 36... Kh7 {[%clk 0:00:21]} 37. Nf6+ {[%clk 0:00:26.3]} 1-0

[Event "*** SCC Grand Prix: Titled Tuesday Blitz"]
[Site "Chess.com"]
[Date "2020.06.02"]
[Round "10"]
[White "tomasdanada"]
[Black "pitterson"]
[Result "0-1"]
[WhiteElo "2194"]
[BlackElo "2223"]
[TimeControl "180+1"]
[EndTime "11:57:53 PDT"]
[Termination "pitterson won by checkmate"]

1. d3 {[%clk 0:02:15.4]} 1... d6 {[%clk 0:02:59.2]} 2. g3 {[%clk 0:02:15.6]}
2... e5 {[%clk 0:02:57.4]} 3. Bg2 {[%clk 0:02:13.1]} 3... Nf6 {[%clk 0:02:57.2]}
4. c4 {[%clk 0:02:11.7]} 4... Nbd7 {[%clk 0:02:56.9]} 5. Nc3 {[%clk 0:02:12.5]}
5... Be7 {[%clk 0:02:56.8]} 6. Nf3 {[%clk 0:02:13.1]} 6... O-O {[%clk
0:02:56.2]} 7. O-O {[%clk 0:02:14]} 7... c6 {[%clk 0:02:56.1]} 8. Rb1 {[%clk
0:02:14.3]} 8... Qc7 {[%clk 0:02:52.5]} 9. b4 {[%clk 0:02:14.8]} 9... a6 {[%clk
0:02:52.6]} 10. a4 {[%clk 0:02:13.6]} 10... b6 {[%clk 0:02:48.9]} 11. e4 {[%clk
0:01:56]} 11... Re8 {[%clk 0:02:45.6]} 12. h3 {[%clk 0:01:56.4]} 12... Nf8
{[%clk 0:02:43.3]} 13. Be3 {[%clk 0:01:56.9]} 13... Ne6 {[%clk 0:02:37.1]} 14.
Re1 {[%clk 0:01:56.2]} 14... Bb7 {[%clk 0:02:33.7]} 15. Kh2 {[%clk 0:01:56.6]}
15... Rad8 {[%clk 0:02:30.8]} 16. d4 {[%clk 0:01:55]} 16... c5 {[%clk
0:02:21.3]} 17. d5 {[%clk 0:01:53.6]} 17... Nf8 {[%clk 0:02:20.2]} 18. bxc5
{[%clk 0:01:30.4]} 18... bxc5 {[%clk 0:02:18.2]} 19. Qc2 {[%clk 0:01:25.5]}
19... Rb8 {[%clk 0:02:16.7]} 20. Rb3 {[%clk 0:01:24.9]} 20... Ba8 {[%clk
0:02:13.3]} 21. Reb1 {[%clk 0:01:25.3]} 21... N8d7 {[%clk 0:02:08.1]} 22. Qa2
{[%clk 0:01:21.7]} 22... Rxb3 {[%clk 0:02:06.2]} 23. Rxb3 {[%clk 0:01:19.8]}
23... Rb8 {[%clk 0:02:05.9]} 24. Qb2 {[%clk 0:01:14.6]} 24... Rxb3 {[%clk
0:02:04]} 25. Qxb3 {[%clk 0:01:15.5]} 25... Qb6 {[%clk 0:02:02.9]} 26. Qa2
{[%clk 0:01:08.9]} 26... Qb4 {[%clk 0:02:00.6]} 27. Bd2 {[%clk 0:01:07.6]} 27...
Nb6 {[%clk 0:01:55.4]} 28. Bf1 {[%clk 0:01:07.2]} 28... Nbd7 {[%clk 0:01:42.7]}
29. Ne1 {[%clk 0:01:02.3]} 29... Qb8 {[%clk 0:01:40.3]} 30. Nd3 {[%clk 0:00:59]}
30... Bd8 {[%clk 0:01:38.5]} 31. Nd1 {[%clk 0:00:52.6]} 31... Nxe4 {[%clk
0:01:30.3]} 32. Bg2 {[%clk 0:00:49.2]} 32... Nxd2 {[%clk 0:01:26.4]} 33. Qxd2
{[%clk 0:00:50.1]} 33... Qb1 {[%clk 0:01:23.4]} 34. Ne3 {[%clk 0:00:48.6]} 34...
Nb6 {[%clk 0:01:17.3]} 35. Be4 {[%clk 0:00:46.3]} 35... Qb3 {[%clk 0:01:12.5]}
36. Nf5 {[%clk 0:00:35.2]} 36... Nxc4 {[%clk 0:01:06.6]} 37. Nh6+ {[%clk
0:00:33.6]} 37... Kf8 {[%clk 0:01:01.6]} 38. Qc1 {[%clk 0:00:29.8]} 38... Na5
{[%clk 0:00:53.2]} 39. Bxh7 {[%clk 0:00:19.8]} 39... Qxd5 {[%clk 0:00:49.3]} 40.
Nf5 {[%clk 0:00:16.9]} 40... Qg2# {[%clk 0:00:46.9]} 0-1